Cogmind - Beta 14 @@@ ROGUE MODE // 2024.08.25 @ 18:36:33 Player: leiavoia Result: Destroyed by P-80 Master with Gamma Rifle Performance ------------- Evolutions (9) 4500 Regions Visited (29) 5800 Robots Destroyed (507) 2535 Value Destroyed (23370) 23370 Prototype IDs (51) 1020 Alien Tech Used (4) 800 Bonus (20886) 20886 TOTAL SCORE: 58911 Bonus ------- Triggered High Security 500 High Alert Combat Kills 11189 Follower Combat Kills 1859 Met Zhirov 300 Met Warlord at Base 500 MAIN.C Attacked Warlord 500 Warlord Defense Kills 54 Met Warlord at Research 2000 Scanned by Researcher 500 Acquired SGEMP 2000 Delivered SGEMP 2000 Friendly Fire -516 Cogmind --------- Core Integrity 0/1600 Matter 264/300 Energy 100/100 System Corruption 30% Temperature Cool (0) Movement Core (50) Location -1/Command Parts ------- > --- POWER (3) -------- (None) > --- PROPULSION (6) --- (None) > --- UTILITY (10) ----- (None) > --- WEAPON (6) ------- (None) > --- INVENTORY (5) ---- Light Quantum Reactor Light Quantum Reactor Core Cannon Peak State ------------ > --- POWER ------------ Singularity Reactor > --- PROPULSION ------- Heavy Siege Treads Improved Heavy Siege Treads Advanced Heavy Siege Treads > --- UTILITY ---------- 2N-1CE's Frost Array Cargo Storage Unit Experimental Sensor Array Advanced Signal Interpreter Centrium Light Armor Plating Centrium Light Armor Plating Graphene Brace Advanced Force Field Ghost Barrier > --- WEAPON ----------- Core Cannon Compact Linear Accelerator Compact Linear Accelerator > --- INVENTORY -------- Reinforced Fission Core Micro Antimatter Reactor Cooled Linear Gravjet Cooled Linear Gravjet Advanced Heat Sink Advanced Cooling System Huge Storage Unit High-capacity Matter Pod Experimental Matter Compressor Improved Weapon Cycler Propulsion Shielding AEGIS Remote Shield Long-range Tractor Beam Transdimensional Reconstructor Subatomic Replicator Compact HERF Cannon Enhanced Nova Cannon BFG-9k Vortex Edition Multirail Hardcell Cannon Compact Linear Accelerator Advanced Micro-nuke Launcher Advanced Micro-nuke Launcher SGEMP Prototype [Rating: 221] Favorites ----------- Power Vortex Chain Reactor Engine Heavy Ion Engine Power Core Cooled Fission Core Reactor Vortex Chain Reactor Propulsion Heavy Treads Treads Heavy Treads Leg Aluminum Leg Wheel Compact Wheel Hover Unit Improved Antigrav System Flight Unit Impulse Thruster Utility Huge Storage Unit Device Improved Cooling System Storage Huge Storage Unit Processor Improved Signal Interpreter Hackware Ghost Barrier Protection Makeshift Light Armor Plating Weapon Heavy Phase Cannon Energy Gun Spread Laser Energy Cannon Heavy Phase Cannon Ballistic Gun Light Assault Rifle Ballistic Cannon Hardcell Cannon Launcher Grenade Launcher Special Weapon Improved Remote Datajack Impact Weapon Powered Hammer Slashing Weapon Sigix Broadsword Special Melee Weapon Datajack Build | -11 -10 -10 -9 -9 -9 -8 -8 -7 -7 -7 -7 -7 -7 -5 -5 -5 -5 -4 -4 -4 -4 -4 -3 -3 -3 -2 -2 -1 -1 ------- Run | Yrd Mat Min Mat Min Exi Min Mat Fac Was Fac Sto Rec Scr Fac Upp Upp War Pro Fac Upp Upp Zhi Pro Res Qua Res Tes Acc Com Slots Evolved 18 | . . . 2 . . . 2 2 . . . . . 4 . . . . 2 . . . . 2 . 2 . 2 . Power 2 | . . . . . . . . . . . . . . 1 . . . . . . . . . . . 1 . . . Propulsion 4 | . . . 1 . . . 1 . . . . . . 2 . . . . . . . . . . . . . . . Utility 8 | . . . 1 . . . 1 2 . . . . . . . . . . 1 . . . . 2 . 1 . . . Weapon 4 | . . . . . . . . . . . . . . 1 . . . . 1 . . . . . . . . 2 . Parts Attached 631 | 7 18 11 42 6 . 10 35 22 10 21 38 5 2 23 11 12 27 3 7 8 7 6 4 41 27 39 125 29 35 Power 28 | 1 2 . 4 . . . 3 . 2 . 2 . . 1 . . 1 . . . . 2 . . . 3 1 4 2 Engine 12 | 1 2 . 4 . . . 2 . . . 1 . . 1 . . . . . . . . . . . . . 1 . Core 6 | . . . . . . . 1 . 1 . 1 . . . . . . . . . . . . . . 2 . 1 . Reactor 10 | . . . . . . . . . 1 . . . . . . . 1 . . . . 2 . . . 1 1 2 2 Propulsion 78 | 2 4 3 12 1 . 3 8 5 2 1 1 . . 6 . 1 4 . 2 1 . . . 1 1 2 3 8 7 Treads 59 | 2 3 1 12 1 . 3 8 3 2 1 1 . . 6 . 1 4 . 2 1 . . . 1 1 2 3 . 1 Leg 1 | . . . . . . . . 1 . . . . . . . . . . . . . . . . . . . . . Wheel 15 | . 1 2 . . . . . 1 . . . . . . . . . . . . . . . . . . . 5 6 Hover 2 | . . . . . . . . . . . . . . . . . . . . . . . . . . . . 2 . Flight 1 | . . . . . . . . . . . . . . . . . . . . . . . . . . . . 1 . Utility 285 | 2 2 2 7 2 . 2 6 4 5 11 16 4 1 10 5 5 11 3 4 4 7 3 3 32 18 26 66 7 17 Device 222 | 1 . 1 5 2 . 1 4 2 5 7 12 3 1 7 4 4 7 2 3 3 5 3 3 29 14 24 57 4 9 Storage 10 | 1 2 . . . . . . . . . . . . . . . 1 . . . . . . . . . 1 2 3 Processor 4 | . . . . . . . . 1 . . . . . . . . 1 . . . 1 . . 1 . . . . . Hackware 10 | . . . . . . . . . . 3 . . . 2 . . . . 1 . . . . 1 . . . . 3 Protection 39 | . . 1 2 . . 1 2 1 . 1 4 1 . 1 1 1 2 1 . 1 1 . . 1 4 2 8 1 2 Artifact . | . . . . . . . . . . . . . . . . . . . . . . . . . . . . . . Weapon 240 | 2 10 6 19 3 . 5 18 13 1 9 19 1 1 6 6 6 11 . 1 3 . 1 1 8 8 8 55 10 9 Energy Gun 17 | 1 3 3 5 . . . . . . . 1 . . . . . . . . . . . . . . . 3 . 1 Energy Cannon 55 | . . . 1 3 . 1 10 2 . 3 5 . . . 1 . . . . . . . . 1 3 3 15 3 4 Ballistic Gun 20 | 1 2 2 4 . . . . . . . . . . . . . . . . . . . . 1 1 1 6 1 1 Ballistic Cannon 61 | . . . 3 . . 2 5 5 . 2 6 . . 2 2 2 6 . . 1 . . . 2 1 1 16 4 1 Launcher 55 | . 5 1 3 . . 2 3 2 . 2 5 . . 2 1 2 2 . . 1 . 1 . 1 1 3 14 2 2 Special Weapon 4 | . . . . . . . . 1 . . . . . . . 1 2 . . . . . . . . . . . . Impact Weapon 16 | . . . 3 . . . . . . 2 2 1 . 2 2 1 1 . 1 1 . . . . . . . . . Slashing Weapon 10 | . . . . . . . . 2 1 . . . . . . . . . . . . . 1 3 2 . 1 . . Piercing Weapon . | . . . . . . . . . . . . . . . . . . . . . . . . . . . . . . Special Melee Weapon 2 | . . . . . . . . 1 . . . . 1 . . . . . . . . . . . . . . . . Unidentified Prototypes 36 | . . . 2 . . . 2 . 1 1 2 . . . . . 7 . 1 . . 2 . 1 3 . 11 2 1 Corrupted Parts 5 | . . . . . . . . . . . . . . . . . 1 . . . . . . . . . 1 3 . System Corruption 30 | . . . . . . . . . . . . . . . . . 10 . . . . . . . . . 14 6 . Parts Lost 58 | . 1 5 2 . . 1 1 4 . . 3 . . . 1 . . . . . . . . 2 1 2 8 1 26 Power 6 | . . . 1 . . . . . . . 1 . . . . . . . . . . . . . . . 1 . 3 Propulsion 18 | . 1 1 . . . . . 3 . . . . . . . . . . . . . . . . . . 3 1 9 Utility 20 | . . 1 . . . 1 1 1 . . 2 . . . 1 . . . . . . . . . 1 2 2 . 8 Weapon 14 | . . 3 1 . . . . . . . . . . . . . . . . . . . . 2 . . 2 . 6 Highest Loss Streak 21 | . 1 5 2 . . 1 1 3 . . 1 . . . 1 . . . . . . . . 1 1 2 3 1 21 To Critical Strikes . | . . . . . . . . . . . . . . . . . . . . . . . . . . . . . . Average Slot Usage (%) 84 | . 99 99 99 99 100 99 89 91 84 76 80 84 84 86 88 87 81 70 72 73 72 72 73 77 77 76 69 72 81 Engine 4 | . 14 14 10 11 11 11 8 7 . . . . . 5 5 5 3 . . . . . . . . . . 1 . Core 1 | . . . . . . . . . 1 . 1 7 7 5 5 5 3 . . . . . . . . 3 1 3 3 Reactor 2 | . . . . . . . . . 4 7 4 . . . . . 1 5 5 5 5 4 5 4 4 4 4 5 7 Treads 21 | . 27 13 33 33 33 32 36 29 19 15 15 15 15 21 23 23 23 23 20 21 21 21 21 19 19 15 12 2 . Wheel 1 | . . 14 . . . . . . 3 . . . . . . . . . . . . . . . . . . 10 17 Device 13 | . 14 2 11 10 11 11 9 15 15 14 16 18 23 8 17 16 14 11 10 11 12 15 15 14 11 13 16 18 16 Storage 7 | . 14 14 11 11 11 11 9 7 7 7 7 7 7 5 5 5 5 5 5 5 5 5 5 4 4 4 4 7 4 Processor 2 | . . . . . . . . 7 7 7 7 7 7 5 5 1 1 5 5 5 2 . . 1 4 4 4 4 3 Hackware 2 | . . . . . . . . . . . . . . 7 . . . . 4 5 5 5 5 8 9 7 3 . . Protection 7 | . . 11 11 11 11 11 8 7 7 6 9 11 7 5 5 9 7 5 5 3 4 5 5 7 6 7 6 4 3 Energy Gun 1 | . 4 7 11 . . . . . . . . . . . . . . . . . . . . . . . . . . Energy Cannon 5 | . . . . 22 22 4 11 . . 7 4 7 7 5 5 5 5 5 5 5 5 5 5 3 . 2 3 3 7 Ballistic Gun 1 | . 18 14 5 . . . . . . . . . . . . . . . . . . . . . 2 . . 2 . Ballistic Cannon 5 | . . . 3 . . 15 6 11 8 1 7 . . 2 8 9 6 5 5 6 10 10 5 7 8 4 9 6 12 Peak Build Rating 221 | 7 8 10 23 24 24 24 36 48 71 72 73 72 68 88 93 94 125 125 138 142 144 144 142 156 175 199 221 195 188 Average Rating 90 | 5 7 9 16 23 24 22 33 42 54 70 67 66 65 80 90 92 104 124 135 140 140 142 140 152 163 185 200 153 165 On Entrance 86 | . 7 8 10 23 24 24 22 34 38 71 69 67 67 68 88 91 94 125 125 138 141 143 141 142 155 169 185 154 176 Naked Turns 44 | . . . . . . . . . . . . . . . . . . . . . . . . . . . . . 44 Heaviest Build 276 | 14 90 90 110 110 110 110 126 124 130 136 136 123 114 136 139 140 241 227 245 251 253 253 250 259 239 267 276 209 244 Greatest Support 225 | 40 40 16 63 63 63 63 85 82 140 140 140 140 140 189 189 195 195 195 195 195 194 194 194 202 202 225 225 75 84 Greatest Overweight (x) 12 | 2 8 8 1 1 1 1 1 12 8 . . . . . . . 1 1 1 1 1 1 1 1 1 1 3 9 8 Average Overweight (x) 1 | . . 7 1 1 1 1 1 1 3 . . . . . . . . 1 1 1 1 1 1 1 1 1 1 2 2 Largest Inventory Capacity 30 | 8 25 25 25 25 25 25 25 25 25 25 25 25 25 25 25 25 30 30 30 30 30 30 30 30 30 30 30 30 25 Average Capacity 26 | 6 11 25 25 25 25 25 25 25 25 25 25 25 25 25 25 25 27 30 30 30 30 30 30 30 30 30 30 25 23 Most Carried 30 | 5 15 22 25 25 25 25 25 25 25 25 25 25 25 25 25 25 30 30 29 29 30 30 30 30 30 30 30 26 25 Average Carried 25 | 3 9 19 24 24 25 24 24 24 23 24 24 24 25 23 24 24 27 30 28 29 29 30 30 29 29 29 29 23 22 Final Capacity 30 | 8 25 25 25 25 25 25 25 25 25 25 25 25 25 25 25 25 30 30 30 30 30 30 30 30 30 30 30 25 5 Final Carried 30 | 5 15 22 25 25 25 25 25 22 25 25 25 25 25 25 25 25 30 30 29 29 30 30 30 29 29 30 28 24 4 Class Distribution -------------------- 26% | Scavenger-Mutant 25% | Mutant 18% | Hauler-Tank 7% | Scavenger-Tank 6% | Hacker-Mutant 5% | Hauler-Skirmisher 4% | Hacker-Tank Dominant Class ---------------- Mutant | -10/Materials Mutant | -10/Mines Mutant | -9/Materials Mutant | -9/Mines Mutant | -9/Exiles Mutant | -8/Mines Scavenger-Mutant | -8/Materials Scavenger-Mutant | -7/Factory Scavenger-Mutant | -7/Waste Scavenger-Mutant | -7/Factory Scavenger-Mutant | -7/Storage Scavenger-Mutant | -7/Recycling Scavenger-Mutant | -7/Scraptown Scavenger-Mutant | -5/Factory Scavenger-Tank | -5/Upper Caves Scavenger-Tank | -5/Upper Caves Hauler-Tank | -5/Warlord Hauler-Skirmisher | -4/Proximity Caves Hauler-Tank | -4/Factory Hauler-Tank | -4/Upper Caves Hauler-Tank | -4/Upper Caves Hauler-Tank | -4/Zhirov Hauler-Tank | -3/Proximity Caves Hacker-Tank | -3/Research Hacker-Mutant | -3/Quarantine Hacker-Mutant | -2/Research Hauler-Tank | -2/Testing Scavenger-Executioner | -1/Access Scavenger-Executioner | -1/Command Resources | -11 -10 -10 -9 -9 -9 -8 -8 -7 -7 -7 -7 -7 -7 -5 -5 -5 -5 -4 -4 -4 -4 -4 -3 -3 -3 -2 -2 -1 -1 ----------- Run | Yrd Mat Min Mat Min Exi Min Mat Fac Was Fac Sto Rec Scr Fac Upp Upp War Pro Fac Upp Upp Zhi Pro Res Qua Res Tes Acc Com Matter Collected 19413 | 279 619 598 683 327 . 430 853 658 601 330 780 237 . 321 602 491 607 134 115 338 302 60 68 2120 1033 858 4851 578 540 Remotely 7550 | . . . . . . . . . . 211 331 . . 156 . . . . . 72 . . . 1590 358 397 3933 291 211 Salvage Created 19271 | 117 844 141 1309 249 . 624 2003 616 225 181 1155 239 . 171 394 385 4 52 50 230 63 112 . 1432 1018 791 4695 952 1219 Parts 936 | 6 61 6 86 17 . 46 91 41 4 11 66 7 . 14 15 9 . 2 5 15 4 3 1 73 48 45 162 47 51 Haulers Intercepted 22 | . 2 . 6 . . . 5 . . 2 2 . . . . . . . . . . . . . . 1 3 1 . Recyclers Shooed 14 | 1 . . 3 . . . 1 1 . . . . . . . . . . . . . . . 1 1 1 . . 5 Parts Field Recycled . | . . . . . . . . . . . . . . . . . . . . . . . . . . . . . . Retrieved Matter . | . . . . . . . . . . . . . . . . . . . . . . . . . . . . . . Parts Self-Destructed 30 | . . . . . . . . . . . . . . . 5 5 . 8 . 5 4 2 1 . . . . . . Prevented 2 | . . . . . . . . . . . . . . . . . . 2 . . . . . . . . . . . Kills | -11 -10 -10 -9 -9 -9 -8 -8 -7 -7 -7 -7 -7 -7 -5 -5 -5 -5 -4 -4 -4 -4 -4 -3 -3 -3 -2 -2 -1 -1 ------- Run | Yrd Mat Min Mat Min Exi Min Mat Fac Was Fac Sto Rec Scr Fac Upp Upp War Pro Fac Upp Upp Zhi Pro Res Qua Res Tes Acc Com Combat Hostiles Destroyed 403 | . 22 3 24 6 . 27 32 17 . 1 29 1 . 8 8 14 1 1 1 7 2 . 2 26 10 16 118 13 14 Melee 6 | . . . . . . . . . . . . . . . . . . . . . . . . . 5 . 1 . . Guns 46 | . 16 1 20 . . . . . . . . . . . . . . . . . . . . 2 2 1 3 1 . Cannons 173 | . . . 2 5 . 11 22 11 . 1 18 . . 4 2 3 . 1 1 3 2 . . 22 3 5 39 6 12 AOE 157 | . 6 2 2 . . 16 6 6 . . 11 . . 4 6 11 1 . . 4 . . 2 2 . 8 66 4 . Classes Destroyed 29 | 2 7 2 . 1 . 1 3 1 . . 1 . . . 3 . . . . . . . 1 . . 2 4 . 1 Worker 27 | . 1 1 3 3 . 2 2 1 . 1 2 . . . . . . . . . . . . 1 . . 7 3 . Builder 16 | . 1 . . . . . 1 3 . . 3 . . 2 . . . . . . . . . 4 . . 1 1 . Tunneler 7 | 1 . 1 . 1 . 3 1 . . . . . . . . . . . . . . . . . . . . . . Hauler 22 | . 2 . 6 . . . 5 . . 2 2 . . . . . . . . . . . . . . 1 3 1 . Recycler 21 | 1 1 1 2 . . 1 2 1 . . . 2 . . . . . . . . . . . . 3 1 2 1 3 Mechanic 9 | . . . . . . . 2 . . . . . . . . . . . . . . . . . . . 7 . . Operator 6 | . 1 . 2 . . . . . . . . . . . . . . . . . . . . . 1 1 . . 1 Drone 2 | . . . . . . . . . . . . . . . . . . . . . . . 2 . . . . . . Watcher 21 | . 3 . 5 . . . 5 . . . 1 . . . . . . . . . . . . 4 1 . 1 1 . Swarmer 66 | . 6 . 1 3 . 15 3 3 . . 1 . . 4 4 3 1 . . 4 . . . . . 10 4 4 . Saboteur 2 | . . . . . . . . . . . . . . . . . . . . . . . . . . . 2 . . Grunt 149 | . 16 . 14 2 . 9 22 7 . . 16 . . . . 8 . . 1 . . . . 7 2 . 42 1 2 Brawler 11 | . . . . 1 . 2 1 . . . 1 . . . . . . . . . . . . . . . 6 . . Duelist 11 | . . . . . . 1 . . . . 2 . . . . . . . . . . . . . . . 8 . . Protector 10 | . . . . . . . . . . . 2 . . . . . . . . 1 . . . . . . 7 . . Researcher 2 | . . . . . . . . . . . . . . . . . . . . . . . . . . . 2 . . Sentry 40 | . . 1 9 . . . 4 5 . . 6 1 . 2 . 1 . . . . . . . 2 . 1 6 . 2 Demolisher 2 | . . . . . . . . . . . . . . . . . . . . . . . . . . 2 . . . Specialist 2 | . . . . . . . . . . . . . . . . . . . . . . . . . . . . . 2 Hunter 29 | . . . . . . . 1 1 . . . . . . 2 . . 1 . 2 2 . . 4 . . 9 5 2 Programmer 62 | . . . . . . . . 1 . 1 1 . . 2 . 2 . . . . . . . 11 8 1 26 3 6 Heavy 1 | . . . . . . . 1 . . . . . . . . . . . . . . . . . . . . . . Behemoth 3 | . . . . . . . . . . . . . . . 1 . . . . . . . . 2 . . . . . Investigator 1 | . . . . . . . . . . . . . . . . . . . . . . . . . . . 1 . . Striker 5 | . . . . . . . . . . . . . . . . . . . . . . . . . . 2 3 . . Executioner 4 | . . . . . . . . . . . . . . . . . . . . . . . . . . . 4 . . Alpha 7 1 | . . . . . . . . . . . . . . . . . . . . . . . . . . . 1 . . Decomposer 1 | . . . . . . . . . . . . . . . . 1 . . . . . . . . . . . . . Samaritan 2 | . . . . . . . . . . . . . . . 1 1 . . . . . . . . . . . . . Assembled 2 | . . 2 . . . . . . . . . . . . . . . . . . . . . . . . . . . Wasp 1 | . . . . . . . . . . 1 . . . . . . . . . . . . . . . . . . . Mutant 2 | . . . . . . . . . . . . . . . 1 . . . . 1 . . . . . . . . . Best Kill Streak 29 | 2 5 2 5 3 . 6 8 12 . 1 10 2 . 5 6 7 1 1 1 4 2 . 1 7 3 7 29 6 4 Combat Bots Only 25 | . 4 1 3 3 . 6 5 9 . 1 8 1 . 4 6 7 1 1 1 4 2 . 1 5 3 7 25 4 3 Max Kills in Single Turn 6 | 1 3 1 2 2 . 4 3 2 . 1 4 1 . 2 3 3 1 1 1 3 1 . 1 2 1 3 6 4 2 Gunslinging 1 | . 1 . . . . . . . . . . . . . . . . . . . . . . . . . . . . Exploded 6 | . 2 1 1 . . 4 3 2 . . 3 . . 2 3 3 1 . . 2 . . 1 2 . 3 6 4 . Melee 1 | . . . . . . . . . . . . . . . . . . . . . . . . . 1 . 1 . . Uniques/NPCs Destroyed . | . . . . . . . . . . . . . . . . . . . . . . . . . . . . . . Combat | -11 -10 -10 -9 -9 -9 -8 -8 -7 -7 -7 -7 -7 -7 -5 -5 -5 -5 -4 -4 -4 -4 -4 -3 -3 -3 -2 -2 -1 -1 -------- Run | Yrd Mat Min Mat Min Exi Min Mat Fac Was Fac Sto Rec Scr Fac Upp Upp War Pro Fac Upp Upp Zhi Pro Res Qua Res Tes Acc Com Hostile Shots Fired 3103 | . 69 41 99 8 . 76 118 284 . 17 293 27 . 44 51 18 4 2 . 38 43 . 25 307 57 98 762 54 568 Missed 851 | . 12 12 22 4 . 11 35 102 . 4 85 9 . 14 7 6 1 1 . 6 14 . 7 92 16 21 182 16 172 Damage Taken 29224 | . 604 482 954 84 . 757 1497 1449 21 327 1467 126 . 467 706 217 42 11 23 244 252 . 142 1851 610 1561 7388 817 7125 Core 2884 | . 85 107 105 . . 81 136 53 . 15 94 12 . 16 14 . . . . 36 7 . . 65 22 71 415 63 1487 Absorbed by Shields 14286 | . . . . 3 . 179 147 454 . . 469 . . 132 207 . 39 10 23 226 238 . 65 1929 635 1088 6593 105 1744 Reduced by Siege Mode 1141 | . . . . . . . . . . . 61 13 . . 58 5 . . 4 8 25 . . 123 18 208 618 . . Redirected to Shielding 75 | . . 9 14 . . . . . . . . . . . . . . . . . . . . . . . 52 . . Ignored by Resistances 116 | . . . . . . . . . . . 102 14 . . . . . . . . . . . . . . . . . Regen/Repaired (Parts) 5365 | . 119 . . . . . . . 330 303 . . . 666 . . 122 . 434 . . . . . 152 219 1605 332 1083 Core Remaining (%) 74 | 100 . 23 . . . 53 75 . . . . . 75 . . . . 97 . . . . 96 . 93 . 54 . . Volleys Fired 1077 | 3 74 27 85 14 . 35 79 63 1 19 69 7 . 21 25 17 19 4 6 13 13 12 7 80 19 43 212 42 68 Largest 5 | 2 2 2 2 2 . 2 2 2 1 2 2 1 . 3 3 3 1 1 1 3 3 1 2 4 4 4 4 1 5 Hottest 396 | 60 60 60 130 136 . 112 160 88 44 160 180 60 . 135 195 195 90 90 90 245 245 90 129 266 201 325 355 300 396 Shots Fired 2015 | 6 137 44 160 28 . 57 153 110 1 29 119 7 . 52 52 33 19 6 6 22 30 12 8 207 44 78 411 41 143 Gun 390 | 6 123 34 140 . . . . . . . . 7 . . . . . . . . . . . 26 13 7 26 7 1 Cannon 1424 | . . . 10 28 . 43 151 93 1 25 106 . . 46 50 23 7 6 6 19 30 12 6 178 31 66 313 33 141 Launcher 188 | . 14 10 10 . . 14 2 12 . 4 13 . . 6 2 10 4 . . 3 . . 2 3 . 5 72 1 1 Special 13 | . . . . . . . . 5 . . . . . . . . 8 . . . . . . . . . . . . Kinetic 1082 | 3 94 25 37 . . 29 50 89 1 12 64 . . 30 37 16 . 3 6 9 19 . . 153 44 49 222 12 78 Thermal 509 | 3 29 5 113 28 . 14 11 9 . 13 42 . . 16 13 7 7 3 . 10 11 12 6 46 . 16 55 1 39 Explosive 176 | . 14 10 3 . . 14 2 7 . 4 13 . . 6 2 10 4 . . 3 . . 2 3 . 5 72 1 1 Electromagnetic 210 | . . 4 7 . . . 90 5 . . . 7 . . . . . . . . . . . . . 5 48 23 21 Entropic 30 | . . . . . . . . . . . . . . . . . . . . . . . . 5 . 3 14 4 4 Robot Hit Streak 26 | 3 8 5 21 3 . 10 18 17 . 4 25 6 . 10 15 6 8 4 3 11 8 7 . 11 8 9 26 13 10 Robot Miss Streak 9 | 1 7 2 9 2 . 9 6 4 1 3 6 1 . 4 2 1 2 . 1 1 3 1 1 5 2 3 4 2 4 Penetration Max 2 | . . . . . . . . . . . . . . 1 . 1 . . . . . . . 2 . 1 1 1 1 Secondary Targets 1 | . 1 . . . . . . . . . . . . . . . . . . . . . . . . . . . . Max Gunslinging Chain 1 | . 1 . . . . . . . . . . . . . . . . . . . . . . . . . . . . Shots Hit Robots 1313 | 5 81 24 132 12 . 41 115 65 27 16 86 8 8 32 34 18 9 1 4 16 17 10 . 127 36 46 253 23 67 Core Hits 1155 | 3 60 10 147 8 . 71 76 35 2 13 84 2 . 16 25 44 30 1 1 12 5 2 2 71 15 30 346 18 26 Critical Kills 17 | . 2 . . 2 . . . . . . . . . . . 1 . . . . . . . 3 2 2 3 . 2 Critical Parts Destroyed 14 | . . . . . . . . . . . . . . . . 2 . . . . . . . 7 2 1 2 . . Critical Strikes 98 | . 2 . . 2 . . 2 5 . . 10 . . 2 . 4 . . . . 2 . . 21 8 9 22 1 8 Meltdown 7 | . . . . 2 . . . . . . . . . . . . . . . . . . . 1 . 1 1 . 2 Destroy 27 | . 2 . . . . . . . . . . . . . . 3 . . . . . . . 10 4 3 4 . 1 Blast 46 | . . . . . . . 1 5 . . 10 . . 2 . 1 . . . . 2 . . 8 2 2 9 . 4 Corrupt 1 | . . . . . . . 1 . . . . . . . . . . . . . . . . . . . . . . Sever 2 | . . . . . . . . . . . . . . . . . . . . . . . . . 2 . . . . Sunder 15 | . . . . . . . . . . . . . . . . . . . . . . . . 2 . 3 8 1 1 Melee Attacks 149 | . . . 10 . . . . 5 27 8 13 6 8 2 4 . . . 1 4 . . . 6 38 7 10 . . Impact 48 | . . . 10 . . . . . . 8 13 6 . 2 4 . . . 1 4 . . . . . . . . . Slashing 92 | . . . . . . . . 4 27 . . . . . . . . . . . . . . 6 38 7 10 . . Piercing . | . . . . . . . . . . . . . . . . . . . . . . . . . . . . . . Sneak Attacks 19 | . . . . . . . . 1 . 1 1 2 8 . . . . . . . . . . 1 4 1 . . . Combat Hostiles . | . . . . . . . . . . . . . . . . . . . . . . . . . . . . . . Follow-up Attacks . | . . . . . . . . . . . . . . . . . . . . . . . . . . . . . . Damage Inflicted 79719 | 60 1704 482 2182 302 . 1753 4109 2217 969 746 3949 278 . 1637 1731 2071 1225 120 283 947 674 503 111 6614 2104 2840 31601 3173 5334 Guns 4206 | 60 854 251 1661 . . . . . . . . 141 . . . . . . . . . . . 187 50 37 626 317 22 Cannons 38812 | . . . 186 301 . 759 3487 1502 . 454 2373 . . 1113 1021 585 . 120 283 665 674 503 . 5769 618 1844 8906 2400 5249 Explosions 33219 | . 828 231 307 . . 977 583 693 . 180 1509 . . 493 386 1445 1225 . . 282 . . 111 495 132 769 22066 444 63 Melee 3212 | . . . . . . . . . 969 112 51 137 . 31 324 . . . . . . . . 94 1304 190 . . . Ramming 270 | . 22 . 28 1 . 17 39 22 . . 16 . . . . 41 . . . . . . . 69 . . 3 12 . Kinetic 22684 | 36 643 174 475 . . 499 906 1502 . 217 1373 . . 835 639 378 . 120 283 493 460 . . 4266 668 935 5769 317 1696 Thermal 9885 | 24 451 45 1372 301 . 281 406 34 . 237 1000 . . 278 382 207 . . . 172 214 503 . 1246 85 491 939 . 1217 Explosive 32151 | . 588 231 77 . . 956 436 395 . 180 1509 . . 493 386 1445 1225 . . 282 . . 111 495 . 769 22066 444 63 Electromagnetic 5804 | . . 32 230 . . . 2322 264 . . . 141 . . . . . . . . . . . . 47 105 1495 630 538 Impact 655 | . . . . . . . . . . 112 51 137 . 31 324 . . . . . . . . . . . . . . Slashing 2557 | . . . . . . . . . 969 . . . . . . . . . . . . . . 94 1304 190 . . . Piercing . | . . . . . . . . . . . . . . . . . . . . . . . . . . . . . . Entropic 5713 | . . . . . . . . . . . . . . . . . . . . . . . . 444 . 350 1329 1770 1820 Highest Corruption 44 | . . . . . . . . 1 1 . . . . 5 6 6 10 10 . . . . . 13 14 1 44 12 30 Average Corruption 10 | . . . . . . . . 1 1 . . . . 4 5 4 6 10 . . . . . 8 10 1 17 10 16 Corruption Purged 15 | . . . . . . . . . 1 . . . . . . 4 . . . . . . . . 10 . . . . Corruption Blocked . | . . . . . . . . . . . . . . . . . . . . . . . . . . . . . . Effects 339 | . . . . . . . . 1 6 . . . . 1 35 25 4 23 . . . . . 34 47 2 112 13 36 Message Errors 69 | . . . . . . . . . . . . . . . 8 3 . 3 . . . . . 8 11 . 28 1 7 Matter Fused 72 | . . . . . . . . 1 2 . . . . . 9 7 1 8 . . . . . 9 6 1 19 4 5 Heat Flow Errors 40 | . . . . . . . . . 2 . . . . . 2 4 1 1 . . . . . 3 8 . 13 4 2 Energy Discharges 41 | . . . . . . . . . . . . . . 1 5 1 1 6 . . . . . 3 7 1 12 1 3 Parts Rejected 2 | . . . . . . . . . . . . . . . . . . . . . . . . . . . 1 . 1 Parts Fused 6 | . . . . . . . . . 1 . . . . . 2 . . . . . . . . . 1 . . . 2 Data Loss (minor) 29 | . . . . . . . . . . . . . . . 5 5 1 2 . . . . . 5 4 . 5 1 1 Data Loss (major) 14 | . . . . . . . . . 1 . . . . . 2 3 . 1 . . . . . . 2 . 4 . 1 Misfires 14 | . . . . . . . . . . . . . . . . 2 . 2 . . . . . . 3 . 5 . 2 Alerts 9 | . . . . . . . . . . . . . . . 1 . . . . . . . . . 3 . 4 . 1 Misdirections 6 | . . . . . . . . . . . . . . . . . . . . . . . . . . . . 1 5 Weapon Failures 37 | . . . . . . . . . . . . . . . 1 . . . . . . . . 6 2 . 21 1 6 Overload Shots 6 | . . . . . . . . . . . 5 . . 1 . . . . . . . . . . . . . . . Effects 1 | . . . . . . . . . . . 1 . . . . . . . . . . . . . . . . . . Heat Surge 1 | . . . . . . . . . . . 1 . . . . . . . . . . . . . . . . . . Overflow Damage 4376 | . 86 17 38 2 . 13 164 66 . 46 65 67 . 54 142 173 22 . . 29 73 27 . 232 355 79 1179 994 453 Projectiles 2799 | . . . . 2 . . 132 34 . . 29 . . 54 1 126 . . . 29 73 27 . 145 58 71 572 994 452 Explosions 869 | . 86 17 38 . . 1 32 32 . . 10 . . . . 15 22 . . . . . . . . 8 607 . 1 Melee 708 | . . . . . . 12 . . . 46 26 67 . . 141 32 . . . . . . . 87 297 . . . . Knockbacks 126 | . . . 2 . . 4 8 14 . 2 3 1 . 2 2 4 . . . 1 6 . . 22 4 4 44 . 3 Impact 7 | . . . . . . . . 2 . 1 . 1 . . 2 . . . . . . . . 1 . . . . . Kinetic 110 | . . . 2 . . 4 8 10 . 1 3 . . 2 . 4 . . . 1 6 . . 19 3 4 40 . 3 Secondary 9 | . . . . . . . . 2 . . . . . . . . . . . . . . . 2 1 . 4 . . Self-Inflicted Damage 784 | . 16 50 . . . 121 25 68 . 40 62 . . . . . . . . 49 . . . 13 50 32 252 6 . Shots 27 | . 1 3 . . . 5 1 4 . 1 3 . . . . . . . . 1 . . . 1 2 1 4 . . Rammed 35 | . 10 . 5 1 . 3 3 3 . . 3 . . . . 2 . . . . . . . 3 . . 1 1 . Targets Rammed 36 | . 10 . 6 1 . 3 3 3 . . 3 . . . . 2 . . . . . . . 3 . . 1 1 . Kicked . | . . . . . . . . . . . . . . . . . . . . . . . . . . . . . . Crushed 1 | . . . 1 . . . . . . . . . . . . . . . . . . . . . . . . . . Highest Temperature 500 | . 36 65 156 173 . 318 297 48 88 66 246 22 . 226 285 276 163 219 . 125 336 266 . 410 235 400 500 316 493 Average Temperature 94 | . 16 29 51 55 . 129 96 8 43 23 58 14 . 67 100 101 69 106 . 59 166 133 . 110 82 155 118 104 112 Received Heat Transfer 3962 | . 234 171 396 22 . 196 487 536 9 72 544 48 . 30 72 45 . . . 20 16 . . 93 27 28 604 9 303 Effects 20 | . . . . . . 1 3 . . . . . . . . . . . . . . . . 1 . 9 4 . 2 Shutdowns 3 | . . . . . . . . . . . . . . . . . . . . . . . . . . . 2 . 1 Energy Bleed 7 | . . . . . . . 3 . . . . . . . . . . . . . . . . . . 3 . . 1 Interference 8 | . . . . . . . . . . . . . . . . . . . . . . . . . . 6 2 . . Matter Decay 1 | . . . . . . 1 . . . . . . . . . . . . . . . . . . . . . . . Damage (minor) 1 | . . . . . . . . . . . . . . . . . . . . . . . . 1 . . . . . Siege Activations 53 | . . . . . . . . . . . 6 1 . . 2 3 . . 2 2 1 . . 10 2 4 20 . . Total Turns 1030 | . . . . . . . . . . . 103 7 . . 50 29 . . 18 17 25 . . 250 40 85 406 . . Longest Duration 63 | . . . . . . . . . . . 44 7 . . 26 16 . . 14 13 25 . . 63 23 37 42 . . Robots Corrupted 23 | . . . . . . 1 4 . . . 1 1 . . 2 . . . . . . . . 1 . 1 9 3 . Combat Hostiles 19 | . . . . . . . 4 . . . . 1 . . 2 . . . . . . . . . . 1 9 2 . Parts Fried 39 | . . . . . . . 22 1 . . 1 2 . . 1 . . . . . . . . 2 . . 7 3 . Impact Corruptions 17 | . . . . . . 1 . . . 1 1 2 . . 8 2 . . . . . . . 1 . . 1 . . Robots Melted 7 | . . . . 2 . . . . . . . . . . . . . . . . . . . 1 . 1 1 . 2 Combat Hostiles 4 | . . . . 1 . . . . . . . . . . . . . . . . . . . . . 1 . . 2 Parts Melted 12 | . 1 . 1 4 . 1 1 . . . . . . . . . . . . . . . . 1 . 1 1 . 1 Heat Transferred 10704 | 50 675 100 1700 518 . 494 650 50 . 437 1171 . . 333 407 185 . . . 185 222 444 . 1258 50 407 740 . 628 Parts Sabotaged 5 | . . . . . . . . . . . . . . . . . . . . . . . . . . . 5 . . Parts Stolen . | . . . . . . . . . . . . . . . . . . . . . . . . . . . . . . Parts Stripped . | . . . . . . . . . . . . . . . . . . . . . . . . . . . . . . Power Chain Reactions 9 | . . . 5 . . . 2 1 . . . . . . . . . . . . . . . . 1 . . . . Alert | -11 -10 -10 -9 -9 -9 -8 -8 -7 -7 -7 -7 -7 -7 -5 -5 -5 -5 -4 -4 -4 -4 -4 -3 -3 -3 -2 -2 -1 -1 ------- Run | Yrd Mat Min Mat Min Exi Min Mat Fac Was Fac Sto Rec Scr Fac Upp Upp War Pro Fac Upp Upp Zhi Pro Res Qua Res Tes Acc Com Peak Influence 4428 | 10 557 229 338 245 . 519 656 528 198 976 1338 621 . 357 . . . . 131 . . . . 757 390 681 4428 3317 2490 Initial 2650 | . 6 207 . 105 . . 96 269 174 4 406 521 . . . . . . . . . . . 300 375 129 382 2650 2122 Average 487 | 5 307 49 200 60 . 339 320 284 97 352 913 490 . 85 . . . . 43 . . . . 431 242 151 1478 2988 2273 Maximum Alert Level 5 | . 2 1 1 1 . 2 2 2 . 3 4 2 . 1 . . . . . . . . . 3 1 2 5 5 5 Low Security (%) 36 | 100 29 80 41 85 . 9 39 17 100 34 . . . 82 . . . . 100 . . . . . 17 72 . . . Level 1 29 | . 37 19 58 14 . 64 16 66 . 34 . 5 . 17 . . . . . . . . . 56 82 20 1 . . Level 2 17 | . 33 . . . . 25 44 16 . 7 28 94 . . . . . . . . . . . 38 . 7 22 . . Level 3 6 | . . . . . . . . . . 22 42 . . . . . . . . . . . . 5 . . 31 . . Level 4 3 | . . . . . . . . . . . 28 . . . . . . . . . . . . . . . 18 . . Level 5 4 | . . . . . . . . . . . . . . . . . . . . . . . . . . . 2 100 100 High Security 2 | . . . . . . . . . . . . . . . . . . . . . . . . . . . 24 . . Max Security . | . . . . . . . . . . . . . . . . . . . . . . . . . . . . . . Squads Dispatched 109 | . 5 . 7 . . . 5 8 . 5 8 . . 2 . 1 . . 3 . . . . 8 2 2 36 10 7 Investigation 14 | . 3 . 5 . . . 1 . . 1 . . . . . 1 . . . . . . . . . . . 1 2 Extermination 19 | . . . . . . . . 1 . 2 1 . . 1 . . . . 1 . . . . 3 2 . 6 1 1 Reinforcement 25 | . 2 . 2 . . . 3 2 . 2 3 . . 1 . . . . 1 . . . . 1 . 2 2 2 2 Assault 35 | . . . . . . . 1 . . . 3 . . . . . . . . . . . . . . . 26 3 2 Garrison 16 | . . . . . . . . 5 . . 1 . . . . . . . 1 . . . . 4 . . 2 3 . Intercept . | . . . . . . . . . . . . . . . . . . . . . . . . . . . . . . Searches Triggered . | . . . . . . . . . . . . . . . . . . . . . . . . . . . . . . Construction Impeded 7 | . . . . . . . 1 1 . 1 . . . . . . . . . . . . . 1 . . 2 1 . Haulers Reinforced 3 | . . . . . . . . . . 1 1 . . . . . . . . . . . . . . 1 . . . Active Scanning Responses . | . . . . . . . . . . . . . . . . . . . . . . . . . . . . . . Cargo Convoy Interrupts . | . . . . . . . . . . . . . . . . . . . . . . . . . . . . . . Stealth | -11 -10 -10 -9 -9 -9 -8 -8 -7 -7 -7 -7 -7 -7 -5 -5 -5 -5 -4 -4 -4 -4 -4 -3 -3 -3 -2 -2 -1 -1 --------- Run | Yrd Mat Min Mat Min Exi Min Mat Fac Was Fac Sto Rec Scr Fac Upp Upp War Pro Fac Upp Upp Zhi Pro Res Qua Res Tes Acc Com Distress Signals 29 | . 2 . 2 . . . 5 1 . 1 2 . . . . . 1 . 1 . . . 1 1 . 8 4 . . Communications Jammed . | . . . . . . . . . . . . . . . . . . . . . . . . . . . . . . Distress Signals . | . . . . . . . . . . . . . . . . . . . . . . . . . . . . . . Times Spotted 647 | . 36 4 41 6 . 28 56 19 2 15 43 1 . 6 3 10 26 2 4 7 5 . 3 39 13 19 199 20 40 Peak Tracking Total 22 | . 4 2 4 3 . 5 5 5 1 4 8 1 . 4 3 7 14 2 3 4 3 . 2 6 4 6 22 8 18 Tactical Retreats 29 | . 4 . 4 . . 1 4 2 . . 1 . . . . . . . . . . . 1 4 . 1 2 . 5 Traps | -11 -10 -10 -9 -9 -9 -8 -8 -7 -7 -7 -7 -7 -7 -5 -5 -5 -5 -4 -4 -4 -4 -4 -3 -3 -3 -2 -2 -1 -1 ------- Run | Yrd Mat Min Mat Min Exi Min Mat Fac Was Fac Sto Rec Scr Fac Upp Upp War Pro Fac Upp Upp Zhi Pro Res Qua Res Tes Acc Com Traps Triggered 10 | . 2 . 1 2 . . . 1 . 2 . . . . . . . . . . . . . . . . 1 . 1 Indirectly . | . . . . . . . . . . . . . . . . . . . . . . . . . . . . . . Trap Hack Attempts . | . . . . . . . . . . . . . . . . . . . . . . . . . . . . . . Triggered . | . . . . . . . . . . . . . . . . . . . . . . . . . . . . . . Disarmed 3 | . . . . . . . . . . . 3 . . . . . . . . . . . . . . . . . . Reprogrammed 4 | . . . . . . . . . . . . . . . . . . . . . . . . 4 . . . . . Reused . | . . . . . . . . . . . . . . . . . . . . . . . . . . . . . . Traps Extracted . | . . . . . . . . . . . . . . . . . . . . . . . . . . . . . . Installed . | . . . . . . . . . . . . . . . . . . . . . . . . . . . . . . Triggered 18 | . . . . . . . . . . . . . . . . 1 14 3 . . . . . . . . . . . Machines | -11 -10 -10 -9 -9 -9 -8 -8 -7 -7 -7 -7 -7 -7 -5 -5 -5 -5 -4 -4 -4 -4 -4 -3 -3 -3 -2 -2 -1 -1 ---------- Run | Yrd Mat Min Mat Min Exi Min Mat Fac Was Fac Sto Rec Scr Fac Upp Upp War Pro Fac Upp Upp Zhi Pro Res Qua Res Tes Acc Com Machines Disabled 72 | . 4 . . . . 2 . . . 17 7 . . 1 1 . 1 . . 1 . . . 1 9 3 23 1 1 Max in Single Turn 5 | . 2 . . . . 1 . . . 5 2 . . 1 1 . 1 . . 1 . . . 1 2 1 2 1 1 Garrison Access 4 | . . . . . . . . . . . 1 . . . . . . . . . . . . . 1 1 1 . . Machines Repaired . | . . . . . . . . . . . . . . . . . . . . . . . . . . . . . . Machines Dismantled 1 | . . . . . . . . . . . . . . . . . 1 . . . . . . . . . . . . Machines Sabotaged . | . . . . . . . . . . . . . . . . . . . . . . . . . . . . . . Overloaded Fab Kills . | . . . . . . . . . . . . . . . . . . . . . . . . . . . . . . Hacking | -11 -10 -10 -9 -9 -9 -8 -8 -7 -7 -7 -7 -7 -7 -5 -5 -5 -5 -4 -4 -4 -4 -4 -3 -3 -3 -2 -2 -1 -1 --------- Run | Yrd Mat Min Mat Min Exi Min Mat Fac Was Fac Sto Rec Scr Fac Upp Upp War Pro Fac Upp Upp Zhi Pro Res Qua Res Tes Acc Com Machines Accessed 94 | . 8 . 10 1 1 . 6 4 . 8 5 7 1 4 1 2 1 . 3 2 3 4 . 6 6 . 5 3 3 Terminals 54 | . 5 . 9 . . . 6 . . 3 5 3 . 3 . 1 . . 2 . . . . 4 3 . 4 3 3 Fabricators 6 | . . . . . . . . 2 . 3 . . . . . . . . . . . . . 1 . . . . . Repair Stations 6 | . 1 . . . . . . 1 . 1 . . . 1 . . . . 1 . . . . 1 . . . . . Recycling Units 8 | . 2 . 1 . . . . . . 1 . 4 . . . . . . . . . . . . . . . . . Scanalyzers 3 | . . . . . . . . . . . . . . . . . . . . . . . . . 2 . 1 . . Garrison Access 2 | . . . . . . . . 1 . . . . . . . . . . . . . . . . 1 . . . . Total Hacks 271 | . 28 . 27 1 1 . 16 7 . 16 14 15 4 20 1 4 1 . 17 8 5 17 . 22 17 . 15 10 5 Successful 143 | . 12 . 11 1 1 . 4 3 . 12 7 6 4 11 1 4 1 . 10 8 5 17 . 9 9 . 5 2 . Failed 127 | . 15 . 16 . . . 12 4 . 4 7 9 . 9 . . . . 7 . . . . 13 8 . 10 8 5 Catastrophic 34 | . 2 . 3 . . . 2 1 . 1 2 4 . 1 . . . . 3 . . . . 3 3 . 5 2 2 Database Lockouts 1 | . 1 . . . . . . . . . . . . . . . . . . . . . . . . . . . . Manual 63 | . 12 . 10 . . . 8 . . 2 5 4 . 1 . . . . 2 . . . . 6 3 . 7 . 3 Terminals 165 | . 16 . 23 . . . 16 . . 7 14 5 . 11 . 3 . . 11 . . . . 18 12 . 14 10 5 Fabricators 11 | . . . . . . . . 4 . 5 . . . . . . . . . . . . . 2 . . . . . Repair Stations 23 | . 3 . . . . . . 1 . 2 . . . 9 . . . . 6 . . . . 2 . . . . . Recycling Units 25 | . 9 . 4 . . . . . . 2 . 10 . . . . . . . . . . . . . . . . . Scanalyzers 5 | . . . . . . . . . . . . . . . . . . . . . . . . . 4 . 1 . . Garrison Access 3 | . . . . . . . . 2 . . . . . . . . . . . . . . . . 1 . . . . Terminal Hacks 96 | . 6 . 9 1 1 . 3 . . 5 7 1 4 3 1 4 1 . 4 8 5 17 . 7 4 . 3 2 . Record 23 | . . . . . 1 . . . . . . . 4 . . 3 . . . 7 3 5 . . . . . . . Part Schematic 8 | . 2 . . . . . . . . . . 1 . 1 . . . . . . . 4 . . . . . . . Robot Schematic 1 | . . . . . . . . . . . 1 . . . . . . . . . . . . . . . . . . Robot Analysis 7 | . . . 2 . . . . . . . 1 . . . . . . . . . . 4 . . . . . . . Prototype ID Bank 7 | . 1 . 1 . . . 1 . . . . . . . . . . . . . . 4 . . . . . . . Open Door 11 | . . . . 1 . . . . . . 1 . . . 1 1 1 . . 1 2 . . 1 . . . 2 . Branch Access Points 5 | . . . 1 . . . 1 . . 1 . . . 1 . . . . 1 . . . . . . . . . . Emergency Access Points 5 | . . . 1 . . . . . . . 1 . . . . . . . 2 . . . . . . . 1 . . Terminal Index 1 | . . . . . . . . . . 1 . . . . . . . . . . . . . . . . . . . Unreport Threat 6 | . . . 2 . . . . . . . 1 . . . . . . . . . . . . 2 1 . . . . Locate Traps 7 | . 1 . 1 . . . 1 . . 1 1 . . . . . . . . . . . . 1 . . 1 . . Disarm Traps 1 | . . . . . . . . . . . 1 . . . . . . . . . . . . . . . . . . Reprogram Traps 1 | . . . . . . . . . . . . . . . . . . . . . . . . 1 . . . . . Maintenance Status 1 | . . . . . . . . . . . . . . . . . . . . . . . . 1 . . . . . Surveillance Status 1 | . . . . . . . . . . . . . . . . . . . . . . . . . 1 . . . . Patrol Status 1 | . . . . . . . . . . . . . . . . . . . 1 . . . . . . . . . . Hauler Manifests 2 | . 1 . . . . . . . . . . . . . . . . . . . . . . . 1 . . . . Zone Layout 8 | . 1 . 1 . . . . . . 2 . . . 1 . . . . . . . . . 1 1 . 1 . . Fabricator Hacks 5 | . . . . . . . . 2 . 3 . . . . . . . . . . . . . . . . . . . Network Status 1 | . . . . . . . . 1 . . . . . . . . . . . . . . . . . . . . . Load Schematic 1 | . . . . . . . . . . 1 . . . . . . . . . . . . . . . . . . . Build 3 | . . . . . . . . 1 . 2 . . . . . . . . . . . . . . . . . . . Repair Station Hacks 16 | . 2 . . . . . . . . 2 . . . 7 . . . . 4 . . . . 1 . . . . . Scan Component 9 | . 1 . . . . . . . . 1 . . . 4 . . . . 2 . . . . 1 . . . . . Repair 7 | . 1 . . . . . . . . 1 . . . 3 . . . . 2 . . . . . . . . . . Recycling Unit Hacks 5 | . 2 . . . . . . . . 1 . 2 . . . . . . . . . . . . . . . . . Retrieve Components 5 | . 2 . . . . . . . . 1 . 2 . . . . . . . . . . . . . . . . . Scanalyzer 3 | . . . . . . . . . . . . . . . . . . . . . . . . . 2 . 1 . . Insert Component 3 | . . . . . . . . . . . . . . . . . . . . . . . . . 2 . 1 . . Garrison Access Hacks 2 | . . . . . . . . 1 . . . . . . . . . . . . . . . . 1 . . . . Seal Access 1 | . . . . . . . . . . . . . . . . . . . . . . . . . 1 . . . . Coupler Status 1 | . . . . . . . . 1 . . . . . . . . . . . . . . . . . . . . . Unauthorized Hacks 16 | . 2 . 2 . . . 1 . . 1 . 3 . 1 . . . . 2 . . . . 1 2 . 1 . . Terminals 9 | . . . 1 . . . 1 . . . . . . 1 . . . . 2 . . . . 1 2 . 1 . . Assimilate 1 | . . . . . . . . . . . . . . . . . . . . . . . . . . . 1 . . Botnet 6 | . . . 1 . . . 1 . . . . . . 1 . . . . 1 . . . . 1 1 . . . . Operators 2 | . . . . . . . . . . . . . . . . . . . 1 . . . . . 1 . . . . Fabricators . | . . . . . . . . . . . . . . . . . . . . . . . . . . . . . . Repair Stations . | . . . . . . . . . . . . . . . . . . . . . . . . . . . . . . Recycling Units 7 | . 2 . 1 . . . . . . 1 . 3 . . . . . . . . . . . . . . . . . Recyclers 1 | . . . . . . . . . . 1 . . . . . . . . . . . . . . . . . . . Tunnel 6 | . 2 . 1 . . . . . . . . 3 . . . . . . . . . . . . . . . . . Scanalyzers . | . . . . . . . . . . . . . . . . . . . . . . . . . . . . . . Garrison Access . | . . . . . . . . . . . . . . . . . . . . . . . . . . . . . . Data Cores Recovered 1 | . . . . . . . . . . . . . . . . . . . . . . . . . 1 . . . . Used . | . . . . . . . . . . . . . . . . . . . . . . . . . . . . . . Hacking Detections 70 | . 5 . 10 . . . 6 4 . 7 5 5 . 3 . 1 . . 3 . . . . 6 5 . 5 2 3 Full Trace Events 9 | . . . 3 . . . 1 . . 1 . 1 . . . 1 . . . . . . . . . . . 1 1 Feedback Events . | . . . . . . . . . . . . . . . . . . . . . . . . . . . . . . Feedback Blocked . | . . . . . . . . . . . . . . . . . . . . . . . . . . . . . . Robot Schematics Acquired 1 | . . . . . . . . . . . 1 . . . . . . . . . . . . . . . . . . Robots Built 2 | . . . . . . . . . . 2 . . . . . . . . . . . . . . . . . . . Authchips . | . . . . . . . . . . . . . . . . . . . . . . . . . . . . . . Time 27 | . . . . . . . . . . 27 . . . . . . . . . . . . . . . . . . . Total Robot Build Rating 2 | . . . . . . . . . . 2 . . . . . . . . . . . . . . . . . . . Part Schematics Acquired 8 | . 2 . . . . . . . . . . 1 . 1 . . . . . . . 4 . . . . . . . Parts Built 3 | . . . . . . . . 2 . 1 . . . . . . . . . . . . . . . . . . . Authchips . | . . . . . . . . . . . . . . . . . . . . . . . . . . . . . . Time 67 | . . . . . . . . 42 . 25 . . . . . . . . . . . . . . . . . . . Total Part Build Rating 9 | . . . . . . . . 8 . 1 . . . . . . . . . . . . . . . . . . . Parts Repaired 7 | . 1 . . . . . . . . 1 . . . 3 . . . . 2 . . . . . . . . . . Time 303 | . 26 . . . . . . . . 56 . . . 165 . . . . 56 . . . . . . . . . . Parts Recycled . | . . . . . . . . . . . . . . . . . . . . . . . . . . . . . . Recycled Matter . | . . . . . . . . . . . . . . . . . . . . . . . . . . . . . . Retrieved Matter . | . . . . . . . . . . . . . . . . . . . . . . . . . . . . . . Retrieved Components 29 | . 17 . . . . . . . . 9 . 3 . . . . . . . . . . . . . . . . . Parts Scanalyzed . | . . . . . . . . . . . . . . . . . . . . . . . . . . . . . . Part Schematics Acquired . | . . . . . . . . . . . . . . . . . . . . . . . . . . . . . . Parts Damaged . | . . . . . . . . . . . . . . . . . . . . . . . . . . . . . . Bothacking | -11 -10 -10 -9 -9 -9 -8 -8 -7 -7 -7 -7 -7 -7 -5 -5 -5 -5 -4 -4 -4 -4 -4 -3 -3 -3 -2 -2 -1 -1 ------------ Run | Yrd Mat Min Mat Min Exi Min Mat Fac Was Fac Sto Rec Scr Fac Upp Upp War Pro Fac Upp Upp Zhi Pro Res Qua Res Tes Acc Com Used RIF Installer . | . . . . . . . . . . . . . . . . . . . . . . . . . . . . . . Robots Hacked 9 | . . . . . . . . 1 . . . . 8 . . . . . . . . . . . . . . . . Non-combat 3 | . . . . . . . . 1 . . . . 2 . . . . . . . . . . . . . . . . Combat 6 | . . . . . . . . . . . . . 6 . . . . . . . . . . . . . . . . Robot Hacks Applied 9 | . . . . . . . . 1 . . . . 8 . . . . . . . . . . . . . . . . parse_system 8 | . . . . . . . . . . . . . 8 . . . . . . . . . . . . . . . . find_recycling 1 | . . . . . . . . 1 . . . . . . . . . . . . . . . . . . . . . Relay Couplers Released 8 | . . . . . . . . . . . 1 . . . . . . . . . . . . . . 3 4 . . Machine Destruction 4 | . . . . . . . . . . . 1 . . . . . . . . . . . . . . 3 . . . Programmers 4 | . . . . . . . . . . . . . . . . . . . . . . . . . . . 4 . . Fabnet Peak Effective % . | . . . . . . . . . . . . . . . . . . . . . . . . . . . . . . Robots Rewired 8 | . . . . . . . . . . . . . . . . . 5 . . 3 . . . . . . . . . Allies Hacked 1 | . . . . . . . . . . 1 . . . . . . . . . . . . . . . . . . . Hacks Repelled . | . . . . . . . . . . . . . . . . . . . . . . . . . . . . . . Allies | -11 -10 -10 -9 -9 -9 -8 -8 -7 -7 -7 -7 -7 -7 -5 -5 -5 -5 -4 -4 -4 -4 -4 -3 -3 -3 -2 -2 -1 -1 -------- Run | Yrd Mat Min Mat Min Exi Min Mat Fac Was Fac Sto Rec Scr Fac Upp Upp War Pro Fac Upp Upp Zhi Pro Res Qua Res Tes Acc Com Total Allies 47 | . . 3 . 1 . . . . 20 2 10 . . . . . 5 . . 3 . . . . . . . 3 . Largest Group 20 | . . 3 3 1 . . . . 20 14 10 . . . . . 5 5 5 3 3 . . . . . . 3 . Highest-Rated Group 503 | . . 40 40 31 . . . . 503 391 173 . . . . . 239 232 232 138 138 . . . . . . 379 . Highest-Rated Ally 135 | . . 16 16 31 . . . . 35 35 35 . . . . . 65 65 65 65 46 . . . . . . 135 . Total Orders 20 | . . . . . . . . . . . . . . . 13 3 . . . 2 . . . . . 2 . . . STAY 1 | . . . . . . . . . . . . . . . . . . . . 1 . . . . . . . . . FOLLOW 1 | . . . . . . . . . . . . . . . . . . . . 1 . . . . . . . . . EXPLORE 12 | . . . . . . . . . . . . . . . 8 2 . . . . . . . . . 2 . . . RETURN 6 | . . . . . . . . . . . . . . . 5 1 . . . . . . . . . . . . . Ally Attacks 363 | . . . 21 . . . . . 40 120 81 . . . . . 46 17 12 4 12 . . . . . . 10 . Total Damage 10829 | . . . 181 . . . . . 2025 3006 1402 . . . . . 1772 654 430 81 320 . . . . . . 958 . Kills 71 | . . . 6 . . . . . 7 26 13 . . . . . 5 3 3 . 3 . . . . . . 5 . Allies Corrupted 1 | . . . . . . . . . . 1 . . . . . . . . . . . . . . . . . . . Allies Melted 3 | . . . . . . . . . . . . . . . . . . . . . 1 . . . . 2 . . . Intel | -11 -10 -10 -9 -9 -9 -8 -8 -7 -7 -7 -7 -7 -7 -5 -5 -5 -5 -4 -4 -4 -4 -4 -3 -3 -3 -2 -2 -1 -1 ------- Run | Yrd Mat Min Mat Min Exi Min Mat Fac Was Fac Sto Rec Scr Fac Upp Upp War Pro Fac Upp Upp Zhi Pro Res Qua Res Tes Acc Com Robot Analysis Total 7 | . . . 2 . . . . . . . 1 . . . . . . . . . . 4 . . . . . . . Derelict Logs Recovered 13 | . . 2 . 2 . . . . . . . . . . 2 2 . 1 . 1 3 . . . . . . . . Drone Launches 10 | . . . . . . . . . . . . . . . 6 2 . . . . . . . . . 2 . . . Drone Recoveries 6 | . . . . . . . . . . . . . . . 5 1 . . . . . . . . . . . . . Exploration | -11 -10 -10 -9 -9 -9 -8 -8 -7 -7 -7 -7 -7 -7 -5 -5 -5 -5 -4 -4 -4 -4 -4 -3 -3 -3 -2 -2 -1 -1 ------------- Run | Yrd Mat Min Mat Min Exi Min Mat Fac Was Fac Sto Rec Scr Fac Upp Upp War Pro Fac Upp Upp Zhi Pro Res Qua Res Tes Acc Com Turns Passed 38303 | 96 1463 1832 2278 1787 977 1735 2051 939 720 1355 960 845 1956 653 1322 1061 1204 692 364 2323 2089 404 1073 1172 1251 1931 2760 378 632 Spaces Moved 15206 | 51 629 651 744 682 408 674 696 275 312 748 373 500 1214 247 634 471 563 269 104 899 830 146 430 309 416 714 742 135 340 Core 97 | 12 . . . . . . . . . . . . . . . . . . . . . . . . . . . . 85 Treads 13912 | 39 600 . 744 682 408 674 696 261 179 748 373 500 1214 247 634 471 563 269 104 899 830 146 430 309 416 714 742 20 . Legs 5 | . . . . . . . . 5 . . . . . . . . . . . . . . . . . . . . . Wheels 1192 | . 29 651 . . . . . 9 133 . . . . . . . . . . . . . . . . . . 115 255 Hover . | . . . . . . . . . . . . . . . . . . . . . . . . . . . . . . Flight . | . . . . . . . . . . . . . . . . . . . . . . . . . . . . . . Fastest Speed 50 | 50 160 175 240 240 240 240 236 205 160 160 160 160 160 156 158 158 158 247 240 245 245 245 245 238 238 238 238 125 50 Average Speed 207 | 142 161 198 240 240 240 240 236 248 184 160 160 160 160 156 158 160 184 247 246 246 245 245 245 243 238 238 249 173 115 Slowest Speed 960 | 160 240 200 240 240 240 240 240 960 220 160 160 160 160 158 160 162 247 247 247 247 245 245 245 245 240 240 450 360 210 Overloaded Moves . | . . . . . . . . . . . . . . . . . . . . . . . . . . . . . . Propulsion Burnouts . | . . . . . . . . . . . . . . . . . . . . . . . . . . . . . . Robots Hopped . | . . . . . . . . . . . . . . . . . . . . . . . . . . . . . . Cave-ins Triggered . | . . . . . . . . . . . . . . . . . . . . . . . . . . . . . . Teleports 1 | . . . . . . . . . . . . . . . . . . . . . . . . . . . 1 . . Exploration Rate (%) 61 | 4 99 98 81 99 88 99 62 11 96 28 79 96 61 12 92 81 83 63 7 93 86 60 60 13 58 30 77 5 19 Regions Visited 29 Branch Regions 18 Pre-discovered Areas 13 | . 2 1 1 2 . . . . . . . 3 . . . . . . . 1 . 3 . . . . . . . Known Exits Taken 17 | . . 1 1 . . . . . . 1 1 1 1 1 1 1 . 1 1 . . . 1 1 1 1 1 1 . Unknown Exits Taken 10 | 1 1 . . 1 1 1 1 . . . . . . . . . 1 . . 1 1 1 . . . . . . . Scrap Searched 17 | . . 1 . 1 . 1 . . . . . . . . 3 2 . 3 . 3 2 . 1 . . . . . . Spaces Dug 315 | . 8 15 6 . . 5 . 20 . 14 10 4 . 20 4 23 3 3 1 18 2 . 3 7 15 17 84 25 8 Terrain Destroyed 2058 | . 93 49 37 . . 90 26 69 . 75 272 4 . 75 74 89 55 3 3 44 13 . 37 91 28 95 636 41 59 Melee 66 | . . . 6 . . . . 4 . 5 10 4 . 1 . . . . 1 3 . . . 4 14 5 9 . . Projectile 389 | . . . . . . 1 2 8 . 1 15 . . 9 18 9 3 3 2 6 13 . 6 45 10 20 142 20 56 AOE 1603 | . 93 49 31 . . 89 24 57 . 69 247 . . 65 56 80 52 . . 35 . . 31 42 4 70 485 21 3 Terrain Rammed . | . . . . . . . . . . . . . . . . . . . . . . . . . . . . . . Walls Destroyed . | . . . . . . . . . . . . . . . . . . . . . . . . . . . . . . Machines Disabled . | . . . . . . . . . . . . . . . . . . . . . . . . . . . . . . Actions | -11 -10 -10 -9 -9 -9 -8 -8 -7 -7 -7 -7 -7 -7 -5 -5 -5 -5 -4 -4 -4 -4 -4 -3 -3 -3 -2 -2 -1 -1 --------- Run | Yrd Mat Min Mat Min Exi Min Mat Fac Was Fac Sto Rec Scr Fac Upp Upp War Pro Fac Upp Upp Zhi Pro Res Qua Res Tes Acc Com Total 19971 | 65 933 1151 1064 806 407 729 957 402 418 869 579 529 1223 474 902 754 705 293 203 978 861 183 440 542 574 865 1340 239 486 Wait 2272 | . 189 451 109 96 . 5 86 21 53 43 67 7 . 166 218 244 31 16 84 21 5 8 . 87 47 29 164 15 10 Move 15179 | 50 628 650 743 681 407 673 695 275 311 747 372 499 1213 246 633 470 562 268 103 898 829 145 429 308 415 713 742 134 340 Hop . | . . . . . . . . . . . . . . . . . . . . . . . . . . . . . . Pick Up 214 | 5 10 10 27 3 . 1 23 7 4 14 9 2 . 10 5 3 10 . . . 3 3 . 10 9 12 18 7 9 Fast Attach 133 | 7 4 1 5 1 . 1 7 2 3 1 3 1 . 3 1 3 11 2 4 1 2 6 . . 7 10 28 9 10 Attach 114 | . 1 5 5 . . 1 4 5 2 5 5 . . 6 1 1 1 . 2 . 1 . . 5 4 9 21 16 14 Detach 47 | . . 1 3 . . . 1 . 1 1 1 . . . . . 3 . 1 . . . . . 3 1 21 4 6 Swap 387 | . 13 5 32 5 . 8 24 15 5 15 30 4 2 14 9 8 15 1 1 7 4 1 4 36 16 20 78 4 11 Drop 294 | . 4 1 39 5 . 2 35 6 11 16 7 3 . 6 6 6 25 2 1 1 4 8 . 7 16 21 37 7 18 Fire 1077 | 3 74 27 85 14 . 35 79 63 1 19 69 7 . 21 25 17 19 4 6 13 13 12 7 80 19 43 212 42 68 Melee 149 | . . . 10 . . . . 5 27 8 13 6 8 2 4 . . . 1 4 . . . 6 38 7 10 . . Ram 1 | . . . . . . . . . . . . . . . . . . . . . . . . . . . . 1 . Kick . | . . . . . . . . . . . . . . . . . . . . . . . . . . . . . . Crush 34 | . 10 . 6 1 . 3 3 3 . . 3 . . . . 2 . . . . . . . 3 . . . . . Escape Stasis 8 | . . . . . . . . . . . . . . . . . . . . . . . . . . . 8 . . Rewire 54 | . . . . . . . . . . . . . . . . . 20 . . 33 . . . . . . 1 . . Trap . | . . . . . . . . . . . . . . . . . . . . . . . . . . . . . . Miscellaneous 8 | . . . . . . . . . . . . . . . . . 8 . . . . . . . . . . . . Route ------- -11/Scrapyard -10/Materials (discovered 5 exits: *Mat x3 / [*Min x2]) -10/Mines (discovered 2 exits: *Mat x2) -9/Materials (discovered 4 exits: *Mat x2 / *Min x2) -9/Mines (discovered 3 exits: *Mat x2 / *Exi) -9/Exiles -8/Mines (discovered 2 exits: *Mat x2) -8/Materials (discovered 2 exits: *Fac x2) -7/Factory -7/Waste -7/Factory (discovered 4 exits: *Sto x2 / Low x2) -7/Storage -7/Recycling (discovered 2 exits: *Fac / *Scr) -7/Scraptown -5/Factory (discovered 2 exits: *Upp x2) -5/Upper Caves -5/Upper Caves (discovered 2 exits: *Fac / *War) -5/Warlord -4/Proximity Caves -4/Factory (discovered 4 exits: *Res / *Upp x2 / Arm) -4/Upper Caves -4/Upper Caves (discovered 2 exits: *Res / *Zhi) -4/Zhirov -3/Proximity Caves -3/Research -3/Quarantine -2/Research (discovered 2 exits: *Acc / *Tes) -2/Testing -1/Access (discovered 2 exits: Sur / *Com) -1/Command History --------- Turn | Location | Event 18 | -11/Scrapyard | Discovered new exit (range 16) 97 | -11/Scrapyard | Entered Materials 307 | -10/Materials | Build established: Mutant 620 | -10/Materials | Discovered new exit (range 10) 730 | -10/Materials | Discovered new exit (range 15) 896 | -10/Materials | Discovered new exit (range 14) 1051 | -10/Materials | Discovered new exit (range 19) 1227 | -10/Materials | Central database locked down 1378 | -10/Materials | Build established: Scavenger-Mutant 1467 | -10/Materials | Repaired Lgt. Treads 1483 | -10/Materials | Discovered new exit (range 6) 1560 | -10/Materials | Entered Mines 1625 | -10/Mines | Discovered new exit (range 11) 1653 | -10/Mines | Identified exit to Materials 1865 | -10/Mines | Core integrity fell below 50% 1885 | -10/Mines | Joined a pair of Derelicts in attacking an 0b10 outpost 1900 | -10/Mines | Lost 5 parts (1n1u3w) 2125 | -10/Mines | Excavation squad dispatched 2125 | -10/Mines | A large section of the Mines collapsed 2134 | -10/Mines | Build established: Mutant 2375 | -10/Mines | Excavation squad dispatched 2808 | -10/Mines | Assisted by bots powering up and referring to "LRC-V3" 3010 | -10/Mines | Found a damaged Exp. Sensor Array with a note attached 3014 | -10/Mines | Found Prototype Device 3151 | -10/Mines | Learned location of Zion (-6) 3392 | -10/Mines | Entered Materials 3392 | -9/Materials | Accompanied by 3 allies 3392 | -9/Materials | Evolved 2 slots: Propulsion x1, Utility x1 3396 | -9/Materials | Identified Exp. Sensor Array 3503 | -9/Materials | Identified exit to Mines 3936 | -9/Materials | Discovered new exit (range 15) 4527 | -9/Materials | Build established: Scavenger-Mutant 5122 | -9/Materials | Discovered new exit (range 3) 5479 | -9/Materials | Build established: Mutant 5670 | -9/Materials | Entered Mines 5712 | -9/Mines | Met a Derelict bent on vengeance 6692 | -9/Mines | Discovered new exit (range 9) 6727 | -9/Mines | Met a Derelict who couldn't figure out how to use a Trap Extractor 6880 | -9/Mines | Deemed a non-threat by the Exiles lab entrance 7078 | -9/Mines | Received a Mining Laser from a helpful Derelict 7282 | -9/Mines | Discovered new exit (range 9) 7447 | -9/Mines | Discovered new exit (range 5) 7457 | -9/Mines | Entered Exiles 7457 | -9/Exiles | Found Exiles lab abandoned 8415 | -9/Exiles | Discovered new exit (range 10) 8434 | -9/Exiles | Entered Mines 8869 | -8/Mines | Discovered new exit (range 8) 10016 | -8/Mines | Discovered new exit (range 5) 10169 | -8/Mines | Entered Materials 10169 | -8/Materials | Evolved 2 slots: Propulsion x1, Utility x1 10665 | -8/Materials | Build established: Scavenger-Mutant 10919 | -8/Materials | Discovered new exit (range 10) 11091 | -8/Materials | Build established: Mutant 11564 | -8/Materials | Build established: Scavenger-Mutant 11955 | -8/Materials | Discovered new exit (range 15) 12169 | -8/Materials | First assault squad dispatched 12220 | -8/Materials | Entered Factory 12220 | -7/Factory | Evolved 2 slots: Utility x2 12624 | -7/Factory | Fabricated Imp. Shield Generator? 12990 | -7/Factory | Garrison activated, responded to threat 13076 | -7/Factory | Destroyed 9 combat bots 13104 | -7/Factory | Lost 3 parts (2n1u) 13159 | -7/Factory | Sucked down chute 13159 | -7/Factory | Entered Waste 13160 | -7/Waste | Joined by Warlord forces that had cleared the area 13519 | -7/Waste | A Compactor rumbled back to life 13519 | -7/Waste | Spotted C-40 Crusher 13529 | -7/Waste | Allies destroyed C-40 Crusher 13560 | -7/Waste | Lost 6 allies 13721 | -7/Waste | Discovered new exit (range 16) 13856 | -7/Waste | Identified exit to Factory 13879 | -7/Waste | A Compactor rumbled back to life 13879 | -7/Waste | Spotted C-40 Crusher 13879 | -7/Waste | Entered Factory 13879 | -7/Factory | Accompanied by 14 allies 14123 | -7/Factory | Fabricated Cargo Storage Unit? 14291 | -7/Factory | Repaired Hvy. Treads 14738 | -7/Factory | Fabricated R-06 Scavenger? 14824 | -7/Factory | Identified exit to Storage 14824 | -7/Factory | Identified exit to Lower Caves 14974 | -7/Factory | Lost 5 allies 15234 | -7/Factory | Entered Storage 15234 | -7/Storage | Accompanied by 4 allies 15374 | -7/Storage | Found Prototype Launcher 15374 | -7/Storage | Identified Rocket Array 15509 | -7/Storage | Garrison activated, responded to threat 15634 | -7/Storage | First assault squad dispatched 15692 | -7/Storage | Assisted by bots powering up and referring to "LRC-V3" 15857 | -7/Storage | Lost 5 allies 16099 | -7/Storage | Destroyed 8 combat bots 16188 | -7/Storage | Used back door to open Recycling access 16188 | -7/Storage | Discovered new exit (range 5) 16193 | -7/Storage | Identified exit to Recycling 16194 | -7/Storage | Entered Recycling 16905 | -7/Recycling | Discovered new exit (range 16) 17001 | -7/Recycling | Scanned before Scraplab entrance 17023 | -7/Recycling | Entered Scraplab 17036 | -7/Recycling | Discovered new exit (range 2) 17036 | -7/Recycling | Identified exit to Scraptown 17039 | -7/Recycling | Entered Scraptown 17529 | -7/Scraptown | Discovered new exit (range 5) 17630 | -7/Scraptown | Visited Red Mages 17708 | -7/Scraptown | Visited Symbiants 18068 | -7/Scraptown | Heard Great Nut preacher, LISTEN AND RECITE! 18068 | -7/Scraptown | Visited Fellowship of the Rings 18143 | -7/Scraptown | Visited Spacefarers 18648 | -7/Scraptown | Visited Awakened 18706 | -7/Scraptown | Visited SPCMW 18786 | -7/Scraptown | Visited Artisan Demo Area 18992 | -7/Scraptown | Identified exit to Factory 18995 | -7/Scraptown | Entered Factory 18995 | -5/Factory | Evolved 4 slots: Power x1, Propulsion x2, Weapon x1 19130 | -5/Factory | Repaired Hvy. Treads 19188 | -5/Factory | Repaired Hvy. Treads 19242 | -5/Factory | Repaired Broken Adv. Treads 19476 | -5/Factory | Identified exit to Upper Caves 19648 | -5/Factory | Entered Upper Caves 20104 | -5/Upper Caves | Attacked by a delusional Derelict stockpiling parts 20401 | -5/Upper Caves | Encountered a Warlord checkpoint 20415 | -5/Upper Caves | Build established: Scavenger-Tank 20467 | -5/Upper Caves | Learned Factory trap positions 20592 | -5/Upper Caves | Spotted B-75 Beast 20619 | -5/Upper Caves | Destroyed B-75 Beast 20790 | -5/Upper Caves | Discovered new exit (range 5) 20795 | -5/Upper Caves | Identified exit to Upper Caves 20970 | -5/Upper Caves | Entered another Upper Caves area 20980 | -5/Upper Caves | Discovered new exit (range 25) 21299 | -5/Upper Caves | Identified exit to Warlord 21330 | -5/Upper Caves | Attracted the attention of an 0b10 base 21356 | -5/Upper Caves | Destroyed 7 combat bots 21379 | -5/Upper Caves | Learned Armory terminal intel 21379 | -5/Upper Caves | Learned Research trap positions 21379 | -5/Upper Caves | Learned Factory trap positions 21428 | -5/Upper Caves | Learned Factory terminal intel 21462 | -5/Upper Caves | Attracted the attention of an 0b10 checkpoint 22031 | -5/Upper Caves | Entered Warlord 22086 | -5/Warlord | System corruption cleaned by Quarantine Array 22281 | -5/Warlord | Warlord's base attacked by MAIN.C 22535 | -5/Warlord | Met EX-DEC 22539 | -5/Warlord | Found Prototype Energy Cannon 22556 | -5/Warlord | Found Prototype Energy Cannon 22560 | -5/Warlord | Found Prototype Energy Cannon 22631 | -5/Warlord | Warlord forces counterattacked 22721 | -5/Warlord | Met Warlord 22771 | -5/Warlord | Found Prototype Reactor 22771 | -5/Warlord | Identified Vortex Chain Reactor 22780 | -5/Warlord | Found Prototype Device 22780 | -5/Warlord | Identified Exp. Phase Shifter 22798 | -5/Warlord | Found Prototype Device 22799 | -5/Warlord | Identified System Purifier 22803 | -5/Warlord | Found Prototype Processor 22803 | -5/Warlord | Identified Spectral Analyzer 22813 | -5/Warlord | Found Prototype Hackware 22956 | -5/Warlord | Warlord base infiltrated, sounded retreat 23037 | -5/Warlord | Build established: Hauler-Tank 23094 | -5/Warlord | Spotted Executioner 23107 | -5/Warlord | Spotted Striker 23172 | -5/Warlord | Found Corrupted Prototype Ballistic Cannon 23172 | -5/Warlord | Identified Hvy. Autocannon 23173 | -5/Warlord | System corruption reached 10% 23181 | -5/Warlord | Spotted Striker 23186 | -5/Warlord | Discovered new exit (range 16) 23232 | -5/Warlord | Lost 8 allies 23235 | -5/Warlord | Entered Proximity Caves 23235 | -4/Proximity Caves | Accompanied by 5 allies 23541 | -4/Proximity Caves | Build established: Hauler-Skirmisher 23650 | -4/Proximity Caves | Identified exit to Factory 23662 | -4/Proximity Caves | Spotted B-86 Titan 23927 | -4/Proximity Caves | Entered Factory 23927 | -4/Factory | Accompanied by 5 allies 23927 | -4/Factory | Evolved 2 slots: Utility x1, Weapon x1 23928 | -4/Factory | Identified exit to Armory 23929 | -4/Factory | Loaded intel: 82 trap records 23930 | -4/Factory | Loaded intel: 26 terminal locations 23976 | -4/Factory | Identified Ghost Barrier 23978 | -4/Factory | Identified exit to Upper Caves 24119 | -4/Factory | Repaired Hvy. Treads 24148 | -4/Factory | Repaired Hvy. Treads 24175 | -4/Factory | Discovered new exit (range 18) 24194 | -4/Factory | Garrison activated, responded to threat 24226 | -4/Factory | Build established: Hauler-Tank 24291 | -4/Factory | Entered Upper Caves 24291 | -4/Upper Caves | Accompanied by 2 allies 24597 | -4/Upper Caves | Build established: Hauler-Skirmisher 24850 | -4/Upper Caves | Learned Armory trap positions 24850 | -4/Upper Caves | Learned Research terminal intel 25362 | -4/Upper Caves | Build established: Hauler-Tank 25615 | -4/Upper Caves | Learned location of Armory (-4) 25783 | -4/Upper Caves | Attacked by a delusional Derelict stockpiling Unaware 26445 | -4/Upper Caves | Discovered new exit (range 3) 26466 | -4/Upper Caves | Encountered a Warlord checkpoint 26614 | -4/Upper Caves | Entered another Upper Caves area 26614 | -4/Upper Caves | Accompanied by 3 allies 26615 | -4/Upper Caves | Identified exit to Research 26840 | -4/Upper Caves | Attracted the attention of an 0b10 checkpoint 27222 | -4/Upper Caves | Learned Research stockpile data 27431 | -4/Upper Caves | Build established: Hauler-Skirmisher 27850 | -4/Upper Caves | Learned Research terminal intel 27874 | -4/Upper Caves | Build established: Hauler-Tank 28308 | -4/Upper Caves | Learned Factory trap positions 28308 | -4/Upper Caves | Learned Armory emergency access door positions 28308 | -4/Upper Caves | Learned Research security intel 28529 | -4/Upper Caves | Discovered new exit (range 14) 28703 | -4/Upper Caves | Entered Zhirov 28703 | -4/Zhirov | Discovered new exit (range 3) 28748 | -4/Zhirov | Met Zhirov 28801 | -4/Zhirov | Learned location of Testing (-2) 28816 | -4/Zhirov | Zhirov requested help retrieving the SGEMP Prototype 28853 | -4/Zhirov | Found Alien Artifact 28853 | -4/Zhirov | Identified Integrated Reactor 28853 | -4/Zhirov | Installed Integrated Reactor, increased core energy generation (+10) 28886 | -4/Zhirov | Found Alien Artifact 29107 | -4/Zhirov | Entered Proximity Caves 29183 | -3/Proximity Caves | Spotter reported a threat 29208 | -3/Proximity Caves | Spotter reported a threat 29287 | -3/Proximity Caves | Spotted B-86 Titan 30080 | -3/Proximity Caves | Discovered exit to Research (range 7) 30180 | -3/Proximity Caves | Entered Research 30180 | -3/Research | Evolved 2 slots: Utility x2 30181 | -3/Research | Identified exit to Quarantine 30182 | -3/Research | Loaded intel: 94 trap records 30185 | -3/Research | Loaded intel: 23 terminal locations 30496 | -3/Research | Garrison activated, responded to threat 30630 | -3/Research | Build established: Hacker-Tank 30803 | -3/Research | Spotted B-86 Titan 30853 | -3/Research | Garrison activated, responded to threat 30914 | -3/Research | Destroyed B-86 Titan 30951 | -3/Research | System corruption reached 10% 31069 | -3/Research | Spotted B-86 Titan 31124 | -3/Research | Identified Vortex Driver 31185 | -3/Research | Destroyed B-86 Titan 31352 | -3/Research | Entered Quarantine 31437 | -3/Quarantine | Found Alien Artifact 31545 | -3/Quarantine | Found Prototype Launcher 31545 | -3/Quarantine | Identified Adv. Micro-nuke Launcher 31750 | -3/Quarantine | Identified Subatomic Replicator 31750 | -3/Quarantine | Identified Transdimensional Reconstructor 31932 | -3/Quarantine | Found Alien Slashing Weapon 31932 | -3/Quarantine | Identified Sigix Broadsword 32165 | -3/Quarantine | Found Alien Energy Cannon 32165 | -3/Quarantine | Identified Core Cannon 32238 | -3/Quarantine | Cryocooling Duct disabled 32239 | -3/Quarantine | Build established: Hacker-Mutant 32253 | -3/Quarantine | Ambient heat levels rising (+20) 32253 | -3/Quarantine | Non-combat units ordered to evacuate 32273 | -3/Quarantine | Discovered new exit (range 11) 32600 | -3/Quarantine | Identified exit to Research 32603 | -3/Quarantine | Entered Research 32603 | -2/Research | Warlord forces began assault on 0b10 32603 | -2/Research | Evolved 2 slots: Power x1, Utility x1 32604 | -2/Research | Loaded intel: 24 terminal locations 32687 | -2/Research | Met up with Warlord 32713 | -2/Research | Research machine network offline 33040 | -2/Research | Borebot progress halted 33229 | -2/Research | Lost 3 allies 33339 | -2/Research | Borebot progress halted 33387 | -2/Research | Borebot progress halted 33541 | -2/Research | Discovered new exit (range 15) 33577 | -2/Research | Identified exit to Access 34200 | -2/Research | Found Adv. Micro-nuke Launcher 34235 | -2/Research | Spotted Striker 34260 | -2/Research | Destroyed Striker 34305 | -2/Research | Found Prototype Launcher 34370 | -2/Research | Spotted Striker 34374 | -2/Research | Destroyed Striker 34442 | -2/Research | Destroyed 7 combat bots 34465 | -2/Research | Discovered new exit (range 16) 34513 | -2/Research | Identified exit to Testing 34534 | -2/Research | Entered Testing 34590 | -2/Testing | Lost 4 allies 34746 | -2/Testing | Found Prototype Energy Gun 34746 | -2/Testing | Identified Hyp. EM Gauss Rifle 34828 | -2/Testing | Build established: Hauler-Mutant 34906 | -2/Testing | Found Prototype Reactor 35008 | -2/Testing | Spotted Striker 35016 | -2/Testing | Destroyed Striker 35023 | -2/Testing | Spotted Striker 35035 | -2/Testing | Spotted Alpha 7 35039 | -2/Testing | Destroyed Striker 35062 | -2/Testing | Destroyed Alpha 7 35161 | -2/Testing | Found Prototype Ballistic Gun 35161 | -2/Testing | Identified Multirail 35169 | -2/Testing | Identified Ragnarok Missile Launcher 35172 | -2/Testing | Stole the SGEMP Prototype 35362 | -2/Testing | Found Prototype Device 35362 | -2/Testing | Identified AEGIS Remote Shield 35405 | -2/Testing | Build established: Scavenger-Tank 35561 | -2/Testing | System corruption reached 10% 35606 | -2/Testing | Identified Singularity Reactor 35812 | -2/Testing | First assault squad dispatched 36093 | -2/Testing | Destroyed 9 combat bots 36214 | -2/Testing | Build established: Hauler-Tank 36247 | -2/Testing | Found Prototype Energy Gun 36247 | -2/Testing | Identified Tachyon Dispersion Ray 36382 | -2/Testing | Found Prototype Device 36382 | -2/Testing | Identified 2N-1CE's Frost Array 36546 | -2/Testing | Found Prototype Protection 36546 | -2/Testing | Identified SHELL Armor 36555 | -2/Testing | Found Prototype Protection 36574 | -2/Testing | System corruption reached 30% 36628 | -2/Testing | High security lockdown imminent 36708 | -2/Testing | High security lockdown engaged 36756 | -2/Testing | Spotted Striker 36763 | -2/Testing | Destroyed Striker 36826 | -2/Testing | Destroyed 20 combat bots 36846 | -2/Testing | Garrison activated, responded to threat 36886 | -2/Testing | Scanned by Researcher 36888 | -2/Testing | Destroyed Investigator 36971 | -2/Testing | Destroyed 24 combat bots 36985 | -2/Testing | Spotted Executioner 36987 | -2/Testing | Spotted Executioner 36987 | -2/Testing | Spotted Executioner 36988 | -2/Testing | Garrison activated, responded to threat 36993 | -2/Testing | Destroyed Executioner 36993 | -2/Testing | Destroyed Executioner 36993 | -2/Testing | Destroyed Executioner 37034 | -2/Testing | Spotted Executioner 37042 | -2/Testing | Destroyed Executioner 37063 | -2/Testing | Destroyed 25 combat bots 37202 | -2/Testing | Warped through subspace 37284 | -2/Testing | Discovered exit to Access (range 3) 37290 | -2/Testing | Spotted Executioner 37290 | -2/Testing | Spotted Striker 37294 | -2/Testing | Entered Access 37294 | -1/Access | Evolved 2 slots: Weapon x2 37295 | -1/Access | Delivered the SGEMP Prototype to Zhirov 37295 | -1/Access | Zhirov transferred Access data 37296 | -1/Access | Loaded intel: 108 machine locations 37296 | -1/Access | Loaded intel: 92 trap records 37296 | -1/Access | Identified exit to Surface 37296 | -1/Access | Discovered exit to Surface (range 195) 37296 | -1/Access | Identified exit to Command 37296 | -1/Access | Discovered exit to Command (range 96) 37304 | -1/Access | Identified Hvy. Regenerative Plating 37320 | -1/Access | Lost 3 parts (2n1u) 37366 | -1/Access | Identified BFG-9k Vortex Edition 37367 | -1/Access | Zhirov warped through subspace 37390 | -1/Access | Garrison activated, responded to threat 37428 | -1/Access | System corruption reached 10% 37440 | -1/Access | Lost 4 allies 37593 | -1/Access | First assault squad dispatched 37646 | -1/Access | Build established: Scavenger-Executioner 37672 | -1/Access | Entered Command 37922 | -1/Command | First assault squad dispatched 38156 | -1/Command | Spotted B-99 Colossus 38260 | -1/Command | Core integrity fell below 50% 38260 | -1/Command | Released all parts (2) 38266 | -1/Command | Core integrity fell below 20% 38266 | -1/Command | System corruption reached 30% 38290 | -1/Command | Lost 21 parts (3p6n7u5w) 38304 | -1/Command | Destroyed by P-80 Master with Gamma Rifle Last Messages --------------- 38260_ B-99 Colossus exits siege mode. 38260_ Released Huge Storage Unit. 38260_ Released Graphene Brace. 38260_ Dropped Cargo Storage Unit. 38261_ Slug penetrates Wall. 38261_ Penetrated by Slug. 38261_ R-10 Processor collects Biometal Leg. 38261_ K-01 Serf destroyed. 38261_ Acquired Lgt. Quantum Reactor. 38262_ Wall collapses. 38262_ Penetrated by Slug. 38262_ Critical hit (Burn: +37). 38264_ Penetrated by Slug. 38264_ R-10 Processor collects Lgt. Ion Engine. 38264_ Slug penetrates Wall. 38264_ Slug penetrates H-88 Terminator. 38274_ Penetrated by Slug. 38274_ Slug penetrates Wall. 38282_ Penetrated by Slug. 38282_ Slug penetrates Wall. Map ----- +----------------------------------------------------+ | ####+##### " " ** ##############?? | | #### ##??# " " #??????????????? | | ## #### ##### % ##???###???????? | | ## #????? "#???# ###?????? | | ## ######+#####??#"#"####### | | ## ########## ??# #??+% | | ### ##????????????? ???# % #??# | | " #=*#????????????????????# """" #### % | | " #%!#????????????????????# """" + " [ | | " #%!#????????????????????# """" #### | | [#" ######???????????????# """" #?## | | %% ????????????# #?#" | | % ????????????# ! #?## | | ### ######???????????????###########?#" | | %"# #????????????????????? #??????## | | ## #?????????????????????? +???????# | | #" ##?????????????????????# # ??????# | | ## "#################+##### # ?????#+######### | | " %"[= [ ## # ##+###### ####### | | + %!%% ## # + | | # " = #?? ! # # | | # % " % "" #???? # # | | ####"# """" #?????? ?# k + ! | | #???## """" #???????#+#### # | | #????# "" ######### # | | #????# + @ + | | ##????# #########+####+####+####+######## | | #?????##########??# # " | | #?????????????????# " " | | ?????????????????## """ # "" "" + | | ?????????????????#" ""T"" # """" """" ### | | ?????????????????## "" "" # """" """" #?? | | ??????????????????# " "" "" #?? | | ??????????????????# + #?? | | ?????????????????#" # #?? | | ?????????????????###############################?? | | | | | | | | | | | | | | | | | | | | | | | | | | | | | +----------------------------------------------------+ Best States ------------- Heat Dissipation 183 Energy Generation 85 Energy Capacity 1100 Matter Stores 500 Matter Capacity 500 Sight Range 24 Robot Scan Range 20 Terrain Scan Density 10 Armor Coverage 1800 Resistance: KI 20 Core Shielding 20 Propulsion Shielding 33 Weapon Cycling 20 Phase Shifting 20 Evasion (%) 60 Recoil Reduction 6 Matter Filtering 50 Offensive Hacking 20 Defensive Hacking 22 Item Schematics ----------------- Cargo Storage Unit | -10/Materials | Hacked Huge Storage Unit | -10/Materials | Hacked Mass Driver | -7/Recycling | Hacked Adv. Force Field | -5/Factory | Hacked Assault Drone Bay | -4/Zhirov | Free Exp. Heat Sink | -4/Zhirov | Free Imp. Arc Thrower | -4/Zhirov | Free Exp. Optical Array | -4/Zhirov | Free Robot Schematics ------------------ S-27 Virus | -7/Storage | Hacked Fabricated ------------ Imp. Shield Generator | x2 | -7/Factory | Preloaded Cargo Storage Unit | x1 | -7/Factory R-06 Scavenger | x2 | -7/Factory | Preloaded Alien Tech Used ----------------- Integrated Reactor Sigix Broadsword Core Cannon Transdimensional Reconstructor Achievements -------------- None Challenges ------------ None Game ------ Seed TripodBarrageEdition Manual? 0 Play Time 06:40:10 Cumulative 1107.3 hours Start 2024.08.21 @ 21:17:51 End 2024.08.25 @ 18:36:33 Sessions 13 Manual Loads 0 Difficulty Rogue Special Mode None Game No. 238 Rogue 206 Adventurer 31 Explorer 1 Win Type - Total 51 Types 33/1/9/7/0/0/1/0/0 Lore% 68 Gallery% 85 Achievement% 81 Wizard Run 0 Options --------- Layout 1 ASCII 0 Keyboard 0 Movement Arrows Keybinds 0 Fullscreen 1 Font 24/Terminus Map View 50x40 Zoom Use 0% Tactical HUD 1 Map Filters NONE Filters NONE Steam 1 RUN: fc4e1db1-eb58-4729-94fe-4742d1830dda